Cogmind - Beta 10.2 @@@ ROGUE MODE // 2020.12.02 @ 14:30:59 Player: WeirdFoe Result: Destroyed by D-53 Grenadier with Mini Grenade Launcher Performance ------------- Evolutions (0) 0 Regions Visited (4) 800 Robots Destroyed (15) 75 Value Destroyed (328) 328 Prototype IDs (1) 20 Alien Tech Used (0) 0 Bonus (300) 300 TOTAL SCORE: 1523 Bonus ------- Aligned with FarCom 300 Cogmind --------- Core Integrity 0/250 Matter 239/300 Energy 175/250 System Corruption 0% Temperature Cool (0) Movement Walking (90) Location -9/Mines Parts ------- > --- POWER (1) -------- Ion Engine > --- PROPULSION (2) --- Potential Leg Potential Leg > --- UTILITY (2) ------ High-capacity Storage Unit > --- WEAPON (2) ------- (None) > --- INVENTORY (12) --- Aluminum Leg Aluminum Leg Peak State ------------ > --- POWER ------------ Ion Engine > --- PROPULSION ------- Potential Leg Potential Leg > --- UTILITY ---------- Improved Heat Sink High-capacity Storage Unit > --- WEAPON ----------- Light Assault Rifle Grenade Launcher > --- INVENTORY -------- Ion Engine Aluminum Leg Aluminum Leg YOLO Cannon AWS/Autocannon Rocket Launcher Mining Laser Mining Laser [Rating: 32] Favorites ----------- Power Ion Engine Engine Ion Engine Propulsion Aluminum Leg Treads Light Treads Leg Aluminum Leg Utility High-capacity Storage Unit Device Improved Heat Sink Storage High-capacity Storage Unit Processor Signal Interpreter Weapon Grenade Launcher Energy Gun Medium Laser Ballistic Gun Light Assault Rifle Launcher Grenade Launcher Special Weapon Mining Laser Build | -11 -10 -10 -10 -9 ------- Run | Scr Mat Min Exi Min Slots Evolved . | . . . . . Power . | . . . . . Propulsion . | . . . . . Utility . | . . . . . Weapon . | . . . . . Parts Attached 24 | 6 11 . 2 5 Power 2 | 1 . . . 1 Engine 2 | 1 . . . 1 Core . | . . . . . Reactor . | . . . . . Propulsion 6 | 2 2 . 2 . Treads 2 | 2 . . . . Leg 4 | . 2 . 2 . Wheel . | . . . . . Hover . | . . . . . Flight . | . . . . . Utility 6 | 1 5 . . . Device 2 | . 2 . . . Storage 3 | 1 2 . . . Processor 1 | . 1 . . . Hackware . | . . . . . Protection . | . . . . . Artifact . | . . . . . Weapon 10 | 2 4 . . 4 Energy Gun 2 | 1 1 . . . Energy Cannon . | . . . . . Ballistic Gun 3 | 1 1 . . 1 Ballistic Cannon . | . . . . . Launcher 3 | . 2 . . 1 Special Weapon 2 | . . . . 2 Impact Weapon . | . . . . . Slashing Weapon . | . . . . . Piercing Weapon . | . . . . . Special Melee Weapon . | . . . . . Unidentified Prototypes 1 | . . . 1 . Parts Lost 8 | . 1 . . 7 Power 1 | . . . . 1 Propulsion . | . . . . . Utility 1 | . . . . 1 Weapon 6 | . 1 . . 5 Highest Loss Streak 7 | . 1 . . 7 Average Slot Usage (%) 97 | . 95 100 100 89 Engine 13 | . 14 14 14 12 Treads 5 | . 18 . . . Leg 22 | . 9 28 28 28 Device 10 | . 4 14 14 10 Storage 14 | . 16 14 14 14 Processor 1 | . 3 . . . Energy Gun 2 | . 7 . . . Ballistic Gun 13 | . 14 14 14 12 Launcher 11 | . 5 14 14 7 Naked Turns . | . . . . . Heaviest Build 74 | 13 74 42 42 43 Greatest Support 60 | 40 40 20 60 60 Greatest Overweight (x) 2 | . 2 2 2 . Average Overweight (x) 1 | . . 2 1 . Largest Inventory Capacity 20 | 6 20 12 12 12 Average Capacity 11 | 5 12 12 12 12 Most Carried 11 | 4 6 5 11 6 Average Carried 4 | 2 3 4 4 4 Final Capacity 12 | 6 12 12 12 12 Final Carried 6 | 4 4 4 6 2 Class Distribution -------------------- 94% | Mutant 5% | Hauler-Mutant Dominant Class ---------------- Mutant | -10/Materials Mutant | -10/Mines Mutant | -10/Exiles Mutant | -9/Mines Resources | -11 -10 -10 -10 -9 ----------- Run | Scr Mat Min Exi Min Matter Collected 591 | 242 280 . . 69 Remotely . | . . . . . Salvage Created 401 | . 353 . . 48 Parts 17 | . 13 . . 4 Haulers Intercepted . | . . . . . Recyclers Shooed . | . . . . . Parts Field Recycled . | . . . . . Retrieved Matter . | . . . . . Parts Self-Destructed . | . . . . . Prevented . | . . . . . Kills | -11 -10 -10 -10 -9 ------- Run | Scr Mat Min Exi Min Combat Hostiles Destroyed 21 | . 7 . . 14 Guns 3 | . 3 . . . AOE 18 | . 4 . . 14 Classes Destroyed 6 | . 4 . . 2 Worker 2 | . 2 . . . Recycler 1 | . 1 . . . Watcher 1 | . 1 . . . Swarmer 4 | . . . . 4 Grunt 7 | . 7 . . . Assembled 10 | . . . . 10 Best Kill Streak 14 | . 7 . . 14 Combat Bots Only 14 | . 5 . . 14 Max Kills in Single Turn 5 | . 2 . . 5 Gunslinging . | . . . . . Exploded 5 | . 1 . . 5 Melee . | . . . . . Uniques/NPCs Destroyed . | . . . . . Combat | -11 -10 -10 -10 -9 -------- Run | Scr Mat Min Exi Min Damage Taken 1219 | . 371 . . 848 Core 301 | . 78 . . 223 Absorbed by Shields . | . . . . . Core Remaining (%) 100 | 100 . . . . Volleys Fired 45 | . 33 . . 12 Largest 2 | . 2 . . 2 Hottest 200 | . 70 . . 200 Shots Fired 80 | . 59 . . 21 Gun 64 | . 53 . . 11 Cannon . | . . . . . Launcher 14 | . 6 . . 8 Special 2 | . . . . 2 Kinetic 44 | . 33 . . 11 Thermal 22 | . 20 . . 2 Explosive 14 | . 6 . . 8 Electromagnetic . | . . . . . Robot Hit Streak 10 | . 10 . . 3 Robot Miss Streak 4 | . 2 . . 4 Penetration Max . | . . . . . Secondary Targets . | . . . . . Shots Hit Robots 45 | . 39 . . 6 Core Hits 50 | . 22 . . 28 Critical Hits . | . . . . . Critical Kills . | . . . . . Critical Parts Destroyed . | . . . . . Melee Attacks . | . . . . . Impact . | . . . . . Slashing . | . . . . . Piercing . | . . . . . Sneak Attacks . | . . . . . Combat Hostiles . | . . . . . Follow-up Attacks . | . . . . . Damage Inflicted 1995 | . 966 . . 1029 Guns 457 | . 423 . . 34 Cannons . | . . . . . Explosions 1538 | . 543 . . 995 Melee . | . . . . . Ramming . | . . . . . Kinetic 295 | . 261 . . 34 Thermal 162 | . 162 . . . Explosive 1538 | . 543 . . 995 Electromagnetic . | . . . . . Impact . | . . . . . Slashing . | . . . . . Piercing . | . . . . . Highest Corruption . | . . . . . Average Corruption . | . . . . . Corruption Purged . | . . . . . Overload Shots . | . . . . . Overflow Damage 45 | . . . . 45 Projectiles . | . . . . . Explosions 45 | . . . . 45 Melee . | . . . . . Knockbacks . | . . . . . Impact . | . . . . . Kinetic . | . . . . . Secondary . | . . . . . Self-Inflicted Damage 60 | . 31 . . 29 Shots 4 | . 2 . . 2 Rammed . | . . . . . Targets Rammed . | . . . . . Kicked . | . . . . . Crushed . | . . . . . Highest Temperature 146 | . 72 . . 146 Average Temperature 40 | . 24 . . 61 Received Heat Transfer 492 | . 192 . . 300 Siege Activations . | . . . . . Robots Corrupted . | . . . . . Combat Hostiles . | . . . . . Parts Fried . | . . . . . Impact Corruptions . | . . . . . Robots Melted . | . . . . . Combat Hostiles . | . . . . . Parts Melted . | . . . . . Heat Transferred 481 | . 481 . . . Parts Sabotaged . | . . . . . Parts Stolen . | . . . . . Parts Stripped . | . . . . . Power Chain Reactions . | . . . . . Missiles Intercepted . | . . . . . Alert | -11 -10 -10 -10 -9 ------- Run | Scr Mat Min Exi Min Peak Influence 182 | . 182 23 . 90 Initial 23 | . . 23 . . Average 41 | . 55 23 . 50 Maximum Alert Level . | . . . . . Low Security (%) 100 | 100 100 100 . 100 Level 1 . | . . . . . Level 2 . | . . . . . Level 3 . | . . . . . Level 4 . | . . . . . Level 5 . | . . . . . High Security . | . . . . . Max Security . | . . . . . Squads Dispatched 1 | . 1 . . . Investigation . | . . . . . Extermination . | . . . . . Reinforcement 1 | . 1 . . . Assault . | . . . . . Garrison . | . . . . . Intercept . | . . . . . Construction Impeded . | . . . . . Haulers Reinforced . | . . . . . Stealth | -11 -10 -10 -10 -9 --------- Run | Scr Mat Min Exi Min Distress Signals 3 | . 3 . . . Communications Jammed . | . . . . . Distress Signals . | . . . . . Times Spotted 41 | . 14 . . 27 Peak Tracking Total 12 | . 5 . . 12 Tactical Retreats 4 | . 2 . . 2 Traps | -11 -10 -10 -10 -9 ------- Run | Scr Mat Min Exi Min Traps Triggered . | . . . . . Indirectly . | . . . . . Trap Hack Attempts . | . . . . . Triggered . | . . . . . Disarmed . | . . . . . Reprogrammed . | . . . . . Reused . | . . . . . Traps Extracted . | . . . . . Installed . | . . . . . Triggered . | . . . . . Machines | -11 -10 -10 -10 -9 ---------- Run | Scr Mat Min Exi Min Machines Disabled . | . . . . . Max in Single Turn . | . . . . . Machines Sabotaged . | . . . . . Garrisons Compromised . | . . . . . Overloaded Fab Kills . | . . . . . Fab Network Shutdowns . | . . . . . Hacking | -11 -10 -10 -10 -9 --------- Run | Scr Mat Min Exi Min Machines Accessed 3 | . . . 3 . Terminals . | . . . . . Fabricators . | . . . . . Repair Stations . | . . . . . Recycling Units . | . . . . . Scanalyzers . | . . . . . Garrison Access . | . . . . . Total Hacks 40 | . . . 40 . Successful 40 | . . . 40 . Failed . | . . . . . Catastrophic . | . . . . . Database Lockouts . | . . . . . Manual 1 | . . . 1 . Terminals . | . . . . . Fabricators . | . . . . . Repair Stations . | . . . . . Recycling Units . | . . . . . Scanalyzers . | . . . . . Garrison Access . | . . . . . Terminal Hacks 40 | . . . 40 . Record 40 | . . . 40 . Fabricator Hacks . | . . . . . Repair Station Hacks . | . . . . . Recycling Unit Hacks . | . . . . . Scanalyzer . | . . . . . Garrison Access Hacks . | . . . . . Unauthorized Hacks . | . . . . . Terminals . | . . . . . Fabricators . | . . . . . Repair Stations . | . . . . . Recycling Units . | . . . . . Scanalyzers . | . . . . . Garrison Access . | . . . . . Data Cores Recovered . | . . . . . Used . | . . . . . Hacking Detections . | . . . . . Full Trace Events . | . . . . . Feedback Events . | . . . . . Feedback Blocked . | . . . . . Robot Schematics Acquired . | . . . . . Robots Built . | . . . . . Matter . | . . . . . Time . | . . . . . Total Robot Build Rating . | . . . . . Part Schematics Acquired . | . . . . . Parts Built . | . . . . . Matter . | . . . . . Time . | . . . . . Total Part Build Rating . | . . . . . Parts Repaired . | . . . . . Time . | . . . . . Parts Recycled . | . . . . . Recycled Matter . | . . . . . Retrieved Matter . | . . . . . Retrieved Components . | . . . . . Parts Scanalyzed . | . . . . . Part Schematics Acquired . | . . . . . Parts Damaged . | . . . . . Bothacking | -11 -10 -10 -10 -9 ------------ Run | Scr Mat Min Exi Min Used RIF Installer . | . . . . . Robots Hacked . | . . . . . Non-combat . | . . . . . Combat . | . . . . . Robot Hacks Applied . | . . . . . Relay Couplers Released . | . . . . . Robots Rewired . | . . . . . Allies Hacked . | . . . . . Hacks Repelled . | . . . . . Allies | -11 -10 -10 -10 -9 -------- Run | Scr Mat Min Exi Min Total Allies . | . . . . . Largest Group . | . . . . . Highest-Rated Group . | . . . . . Highest-Rated Ally . | . . . . . Total Orders . | . . . . . Ally Attacks . | . . . . . Total Damage . | . . . . . Kills . | . . . . . Allies Corrupted . | . . . . . Allies Melted . | . . . . . Intel | -11 -10 -10 -10 -9 ------- Run | Scr Mat Min Exi Min Robot Analysis Total . | . . . . . Derelict Logs Recovered . | . . . . . Drone Launches . | . . . . . Drone Recoveries . | . . . . . Exploration | -11 -10 -10 -10 -9 ------------- Run | Scr Mat Min Exi Min Turns Passed 1712 | 77 503 249 807 76 Spaces Moved 936 | 42 220 138 498 38 Core 5 | 5 . . . . Treads 195 | 37 158 . . . Legs 736 | . 62 138 498 38 Wheels . | . . . . . Hover . | . . . . . Flight . | . . . . . Fastest Speed 50 | 50 150 180 90 90 Average Speed 162 | 146 173 180 160 90 Slowest Speed 180 | 160 180 180 180 90 Overloaded Moves . | . . . . . Propulsion Burnouts . | . . . . . Robots Hopped . | . . . . . Cave-ins Triggered . | . . . . . Exploration Rate (%) 37 | 3 35 41 93 13 Regions Visited 4 Branch Regions 3 Pre-discovered Areas 1 | . . . 1 . Known Exits Taken . | . . . . . Unknown Exits Taken 4 | 1 1 1 1 . Scrap Searched 1 | . . 1 . . Spaces Dug . | . . . . . Terrain Destroyed 112 | . 44 . . 68 Melee . | . . . . . Projectile 1 | . . . . 1 AOE 111 | . 44 . . 67 Terrain Rammed . | . . . . . Walls Destroyed . | . . . . . Machines Disabled . | . . . . . Actions | -11 -10 -10 -10 -9 --------- Run | Scr Mat Min Exi Min Total 1042 | 57 282 139 507 57 Wait 5 | . 4 . . 1 Move 932 | 41 219 137 497 38 Hop . | . . . . . Pick Up 25 | 10 9 1 5 . Fast Attach . | . . . . . Attach 14 | 6 3 . . 5 Detach 1 | . . . . 1 Swap 10 | . 8 . 2 . Drop 10 | . 6 1 3 . Fire 45 | . 33 . . 12 Melee . | . . . . . Ram . | . . . . . Kick . | . . . . . Crush . | . . . . . Escape Stasis . | . . . . . Rewire . | . . . . . Trap . | . . . . . Miscellaneous . | . . . . . Route ------- -11/Scrapyard -10/Materials -10/Mines -10/Exiles (discovered 2 exits: [*Min x2]) -9/Mines History --------- Turn | Location | Event 47 | -11/Scrapyard | Discovered new exit (range 14) 78 | -11/Scrapyard | Entered Materials 538 | -10/Materials | Discovered new exit (range 16) 581 | -10/Materials | Entered Mines 586 | -10/Mines | Build established: Mutant 604 | -10/Mines | Received a Rocket Launcher from a helpful Derelict 822 | -10/Mines | Deemed a non-threat by the Exiles lab entrance 822 | -10/Mines | Discovered new exit (range 5) 830 | -10/Mines | Entered Exiles 859 | -10/Exiles | Discovered new exit (range 15) 881 | -10/Exiles | Met 8R-AWN 917 | -10/Exiles | Met EX-HEX 1025 | -10/Exiles | Met EX-DEC 1099 | -10/Exiles | Visited The Gauntlet 1327 | -10/Exiles | Learned location of Zion (-7) 1395 | -10/Exiles | Met EX-BIN 1421 | -10/Exiles | Aligned with FarCom system 1422 | -10/Exiles | Given EX-Vault access code 1520 | -10/Exiles | Opened EX-Vault 1527 | -10/Exiles | Found Prototype Leg 1530 | -10/Exiles | Found Prototype Leg 1532 | -10/Exiles | Identified Potential Leg (x2) 1536 | -10/Exiles | Found Prototype Energy Cannon 1539 | -10/Exiles | Found Prototype Ballistic Cannon 1560 | -10/Exiles | Warned to stay clear of 0b10 Research branches 1626 | -10/Exiles | Discovered new exit (range 14) 1637 | -10/Exiles | Left Exiles lab with Potential Leg 1637 | -10/Exiles | Entered Mines 1638 | -9/Mines | Assembled infested the area 1643 | -9/Mines | Assisted by a Guerilla fighting off Assembled 1677 | -9/Mines | Core integrity fell below 50% 1695 | -9/Mines | Destroyed 14 combat bots 1710 | -9/Mines | Core integrity fell below 20% 1713 | -9/Mines | Destroyed by D-53 Grenadier with Mini Grenade Launcher Last Messages --------------- 01685_ The unstable cave ceiling collapses. 01690_ Imp. Heat Sink destroyed. 01695_ Ion Engine destroyed. 01695_ Mining Laser destroyed. 01698_ U-05 Engineer lays Concrete. 01699_ Mining Laser destroyed. 01699_ U-05 Engineer builds a Wall. 01703_ The unstable cave ceiling collapses. 01703_ as-09286 destroyed. 01703_ U-05 Engineer lays Concrete. 01704_ U-05 Engineer builds a Wall. 01708_ The unstable cave ceiling collapses. 01708_ U-05 Engineer lays Concrete. 01709_ U-05 Engineer builds a Wall. 01711_ The unstable cave ceiling collapses. 01711_ Lgt. Assault Rifle destroyed. 01711_ U-05 Engineer destroyed. 01712_ The unstable cave ceiling collapses. 01712_ Acquired 69 matter. 01713_ The unstable cave ceiling collapses. Map ----- +----------------------------------------------------+ | ???????????????????????????????????? # ?? | | ????????????????????????????????????? ?? | | ????????????????????????????????????? ??? | | ?????????????????????????????????????? % #??? | | ?????????????????????????????????????? % #??? | | ??????????????????????????????????????# % #??? | | ?????????????????????????????????????## ##?? | | ?????????????????????????????????????# ##? | | ?????????????????????????????????????# ]#? | | ?????????????????????????????????????# * #? | | ?????????????????????????????????????# % % #####? | | ?????????????????????????????????????# #????? | | ?????????????????????????????????????# ##???? | | ?????????????????????????????????????## % #???? | | ?????????????????????????????????????### =###???? | | ?????????????????????????????????????# ###????? | | ???????????????d?????????????????????# = #????? | | ?????????????????????????????????????## #????? | | ?????????????????????????????????????# ##???? | | ?????????????????????????????????????# #???? | | ?????????????????????????????????????# ### | | ?????????????????????????###????????##*[ | | ???????????????????????### ######### | | ????????????????? ###### # a ######## | | ?????????????????? # #??????? | | ???????????????????????# @ d a #" ##??????? | | ???????????????????????#=% # #####???????? | | ??????????????????????# # #???????????? | | ??????????????????????### # ####???????????? | | ????????????????????????# # ##??????????????? | | ????????????????????????##### ###???????????????? | | | | | | | | | | | | | | | | | | | | | | | | | | | | | | | | | | | | | | | +----------------------------------------------------+ Best States ------------- Heat Dissipation 39 Energy Generation 10 Energy Capacity 250 Matter Stores 300 Matter Capacity 300 Sight Range 16 Terrain Scan Density 10 Evasion (%) 42 Recoil Reduction 2 Item Schematics ----------------- None Robot Schematics ------------------ None Fabricated ------------ Nothing Alien Tech Used ----------------- None Achievements -------------- None Challenges ------------ None Game ------ Seed TeslaDisposableAxe Manual? 0 Play Time 00:29:12 Cumulative 10.3 hours Start 2020.12.02 @ 13:54:59 End 2020.12.02 @ 14:30:59 Sessions 1 Manual Loads 0 Difficulty Rogue Special Mode None Game No. 39 Rogue 39 Adventurer 0 Explorer 0 Win Type - Total 0 Types 0/0/0/0/0/0/0/0/0 Lore% 14 Gallery% 16 Achievement% 11 Wizard Run 0 Options --------- ASCII 0 Keyboard 0 Movement Mouse Keybinds 0 Fullscreen 1 Font 18/X11Bold Map View 76x50 Tactical HUD 1 Map Filters NONE Filters NONE Steam 1 RUN: b22b0b8f-e52c-42d1-b255-5cd7cefc0971